Cogmind - Beta 9.4 @@@ ROGUE MODE // 2020.01.07 @ 13:46:16 // Winter2019/RPGLIKE Player: Rumbl3 Result: Destroyed by Y-45 Defender with Heavy Assault Rifle Performance ------------- Evolutions (2) 1000 Regions Visited (5) 1000 Robots Destroyed (28) 140 Value Destroyed (471) 471 Prototype IDs (0) 0 Alien Tech Used (0) 0 Bonus (0) 0 TOTAL SCORE: 2611 Bonus ------- None Cogmind --------- Core Integrity 0/600 Matter 291/300 Energy 155/160 System Corruption 0% Temperature Cool (296) Movement Hovering (60) Location -8/Materials Parts ------- > --- POWER (1) -------- Light Nuclear Core > --- PROPULSION (2) --- Improved Hover Unit > --- UTILITY (3) ------ Sensor Array Improved Terrain Scanner Advanced Targeting Computer > --- WEAPON (2) ------- Electrolaser Assault Rifle > --- INVENTORY (3) ---- Advanced Weight Redist. System EM Pulse Gun Great Maul Peak State ------------ > --- POWER ------------ Light Nuclear Core > --- PROPULSION ------- Hover Unit Improved Hover Unit > --- UTILITY ---------- Sensor Array Improved Terrain Scanner Advanced Targeting Computer > --- WEAPON ----------- Electrolaser Assault Rifle > --- INVENTORY -------- EM Pulse Gun Great Maul [Rating: 16] Favorites ----------- Power Ion Engine Engine Ion Engine Power Core Light Nuclear Core Propulsion Hover Unit Leg Aluminum Leg Wheel Wheel Hover Unit Hover Unit Utility Improved Terrain Scanner Device Improved Terrain Scanner Processor Advanced Targeting Computer Weapon Assault Rifle Energy Gun Medium Laser Ballistic Gun Assault Rifle Build | -11 -10 -10 -10 -9 -8 ------- Run | Scr Mat Min Exi Min Mat Slots Evolved 4 | 3 . . . . 1 Power . | . . . . . . Propulsion 1 | 1 . . . . . Utility 2 | 1 . . . . 1 Weapon 1 | 1 . . . . . Parts Attached 15 | 5 2 . . 3 5 Power 2 | . . . . 1 1 Engine . | . . . . . . Core 2 | . . . . 1 1 Reactor . | . . . . . . Propulsion 5 | 2 1 . . . 2 Treads . | . . . . . . Leg . | . . . . . . Wheel 3 | 2 . . . . 1 Hover 2 | . 1 . . . 1 Flight . | . . . . . . Utility 4 | 1 1 . . 1 1 Device 3 | 1 1 . . 1 . Storage . | . . . . . . Processor 1 | . . . . . 1 Hackware . | . . . . . . Protection . | . . . . . . Artifact . | . . . . . . Weapon 4 | 2 . . . 1 1 Energy Gun 4 | 2 . . . 1 1 Energy Cannon . | . . . . . . Ballistic Gun . | . . . . . . Ballistic Cannon . | . . . . . . Launcher . | . . . . . . Special Weapon . | . . . . . . Impact Weapon . | . . . . . . Slashing Weapon . | . . . . . . Piercing Weapon . | . . . . . . Special Melee Weapon . | . . . . . . Unidentified Prototypes . | . . . . . . Parts Lost 3 | . . . . 2 1 Power . | . . . . . . Propulsion 2 | . . . . 1 1 Utility . | . . . . . . Weapon 1 | . . . . 1 . Highest Loss Streak 2 | . . . . 2 1 Average Slot Usage (%) 95 | . 86 100 100 95 97 Engine 9 | . 14 14 14 9 . Core 3 | . . . . 4 12 Wheel 12 | . 16 14 14 10 7 Hover 13 | . 11 14 14 14 14 Device 24 | . 15 28 28 28 25 Processor 2 | . . . . . 11 Energy Gun 13 | . 14 14 14 14 12 Ballistic Gun 13 | . 14 14 14 14 12 Naked Turns . | . . . . . . Heaviest Build 12 | 10 11 11 11 11 12 Greatest Support 31 | 31 31 11 11 11 19 Greatest Overweight (x) 1 | . . . . . 1 Average Overweight (x) . | . . . . . . Largest Inventory Capacity 3 | 2 2 2 2 2 3 Average Capacity 2 | 1 2 2 2 2 2 Most Carried 3 | 2 2 2 2 2 3 Average Carried 1 | . 2 2 2 1 2 Final Capacity 3 | 2 2 2 2 2 3 Final Carried 3 | 2 2 2 2 1 3 Class Distribution -------------------- 61% | Scout 26% | Mutant 12% | Skirmisher Dominant Class ---------------- Mutant | -10/Materials Scout | -10/Mines Scout | -10/Exiles Scout | -9/Mines Skirmisher | -8/Materials Resources | -11 -10 -10 -10 -9 -8 ----------- Run | Scr Mat Min Exi Min Mat Matter Collected 582 | 268 98 18 . 120 78 Remotely . | . . . . . . Salvage Created 692 | 149 295 18 . 58 172 Parts 55 | 14 17 6 . 5 13 Haulers Intercepted 1 | . 1 . . . . Recyclers Shooed 1 | . 1 . . . . Parts Field Recycled . | . . . . . . Retrieved Matter . | . . . . . . Parts Self-Destructed . | . . . . . . Prevented . | . . . . . . Kills | -11 -10 -10 -10 -9 -8 ------- Run | Scr Mat Min Exi Min Mat Combat Hostiles Destroyed 18 | . 7 3 . 6 2 Guns 18 | . 7 3 . 6 2 Classes Destroyed 9 | 2 4 . . 1 2 Tunneler 6 | 5 . . . 1 . Hauler 1 | . 1 . . . . Recycler 1 | 1 . . . . . Operator 1 | . 1 . . . . Watcher 1 | . . . . . 1 Swarmer 6 | . 3 3 . . . Grunt 6 | . 4 . . 2 . Sentry 2 | . . . . . 2 Assembled 4 | . . . . 4 . Best Kill Streak 4 | 4 3 3 . 2 2 Combat Bots Only 3 | . 3 3 . 2 1 Max Kills in Single Turn 1 | 1 1 1 . 1 1 Gunslinging . | . . . . . . Exploded . | . . . . . . Melee . | . . . . . . Uniques/NPCs Destroyed . | . . . . . . Combat | -11 -10 -10 -10 -9 -8 -------- Run | Scr Mat Min Exi Min Mat Damage Taken 1340 | . 279 143 . 578 340 Core 1070 | . 223 114 . 461 272 Absorbed by Shields . | . . . . . . Redirected to Core 890 | . 173 83 . 392 242 Core Remaining (%) 71 | 100 . . . 43 . Volleys Fired 86 | 6 26 10 . 29 15 Largest 2 | 2 2 2 . 2 2 Hottest 83 | 70 70 70 . 70 83 Shots Fired 167 | 12 48 20 . 58 29 Gun 167 | 12 48 20 . 58 29 Cannon . | . . . . . . Launcher . | . . . . . . Special . | . . . . . . Kinetic 85 | 6 26 10 . 29 14 Thermal 73 | 4 22 10 . 22 15 Explosive . | . . . . . . Electromagnetic 9 | 2 . . . 7 . Robot Hit Streak 18 | 6 15 4 . 7 18 Robot Miss Streak 5 | 1 2 3 . 5 1 Penetration Max . | . . . . . . Secondary Targets 1 | . . . . . 1 Max Gunslinging Chain 1 | . . . . . 1 Shots Hit Robots 109 | 8 37 11 . 28 25 Core Hits 46 | 6 17 3 . 11 9 Critical Hits 1 | 1 . . . . . Critical Kills 1 | 1 . . . . . Critical Parts Destroyed . | . . . . . . Melee Attacks . | . . . . . . Impact . | . . . . . . Slashing . | . . . . . . Piercing . | . . . . . . Sneak Attacks . | . . . . . . Combat Hostiles . | . . . . . . Follow-up Attacks . | . . . . . . Damage Inflicted 1409 | 108 427 140 . 354 380 Guns 1409 | 108 427 140 . 354 380 Cannons . | . . . . . . Explosions . | . . . . . . Melee . | . . . . . . Ramming . | . . . . . . Kinetic 590 | 56 204 77 . 113 140 Thermal 736 | 37 223 63 . 173 240 Explosive . | . . . . . . Electromagnetic 83 | 15 . . . 68 . Impact . | . . . . . . Slashing . | . . . . . . Piercing . | . . . . . . Highest Corruption . | . . . . . . Average Corruption . | . . . . . . Corruption Purged . | . . . . . . Overload Shots . | . . . . . . Overflow Damage . | . . . . . . Projectiles . | . . . . . . Explosions . | . . . . . . Melee . | . . . . . . Knockbacks . | . . . . . . Impact . | . . . . . . Kinetic . | . . . . . . Secondary . | . . . . . . Self-Inflicted Damage . | . . . . . . Shots . | . . . . . . Rammed . | . . . . . . Targets Rammed . | . . . . . . Kicked . | . . . . . . Crushed . | . . . . . . Highest Temperature 287 | 36 231 120 . 211 287 Average Temperature 80 | 19 81 72 . 61 136 Received Heat Transfer 474 | . 129 . . 210 135 Effects 4 | . 2 . . . 2 Interference 4 | . 2 . . . 2 Siege Activations . | . . . . . . Robots Corrupted . | . . . . . . Combat Hostiles . | . . . . . . Parts Fried . | . . . . . . Impact Corruptions . | . . . . . . Robots Melted . | . . . . . . Combat Hostiles . | . . . . . . Parts Melted 6 | . 2 1 . 2 1 Heat Transferred 1998 | 111 666 185 . 518 518 Parts Sabotaged . | . . . . . . Parts Stolen . | . . . . . . Parts Stripped . | . . . . . . Power Chain Reactions . | . . . . . . Missiles Intercepted . | . . . . . . Alert | -11 -10 -10 -10 -9 -8 ------- Run | Scr Mat Min Exi Min Mat Peak Influence 258 | 30 258 185 . 55 116 Average Influence 81 | 14 146 167 . 19 44 Maximum Alert Level 1 | . 1 . . . . Low Security (%) 91 | 100 63 100 . 100 100 Level 1 8 | . 36 . . . . Level 2 . | . . . . . . Level 3 . | . . . . . . Level 4 . | . . . . . . Level 5 . | . . . . . . High Security . | . . . . . . Max Security . | . . . . . . Squads Dispatched 1 | . 1 . . . . Investigation . | . . . . . . Extermination . | . . . . . . Reinforcement 1 | . 1 . . . . Assault . | . . . . . . Garrison . | . . . . . . Intercept . | . . . . . . Construction Impeded . | . . . . . . Haulers Reinforced . | . . . . . . Stealth | -11 -10 -10 -10 -9 -8 --------- Run | Scr Mat Min Exi Min Mat Distress Signals 4 | . 1 . . 1 2 Communications Jammed . | . . . . . . Distress Signals . | . . . . . . Times Spotted 34 | . 11 3 . 12 8 Peak Tracking Total 8 | . 5 3 . 8 6 Tactical Retreats 5 | . 1 . . 4 . Traps | -11 -10 -10 -10 -9 -8 ------- Run | Scr Mat Min Exi Min Mat Traps Triggered . | . . . . . . Indirectly . | . . . . . . Trap Hack Attempts . | . . . . . . Triggered . | . . . . . . Disarmed . | . . . . . . Reprogrammed . | . . . . . . Reused . | . . . . . . Traps Extracted . | . . . . . . Installed . | . . . . . . Triggered . | . . . . . . Machines | -11 -10 -10 -10 -9 -8 ---------- Run | Scr Mat Min Exi Min Mat Machines Disabled . | . . . . . . Max in Single Turn . | . . . . . . Machines Sabotaged . | . . . . . . Garrisons Compromised . | . . . . . . Overloaded Fab Kills . | . . . . . . Fab Network Shutdowns . | . . . . . . Hacking | -11 -10 -10 -10 -9 -8 --------- Run | Scr Mat Min Exi Min Mat Machines Accessed 5 | . 1 . . . 4 Terminals 3 | . 1 . . . 2 Fabricators . | . . . . . . Repair Stations . | . . . . . . Recycling Units 2 | . . . . . 2 Scanalyzers . | . . . . . . Garrison Access . | . . . . . . Total Hacks 14 | . 5 . . . 9 Successful 9 | . 2 . . . 7 Failed 5 | . 3 . . . 2 Catastrophic . | . . . . . . Database Lockouts . | . . . . . . Manual 7 | . 3 . . . 4 Terminals 9 | . 5 . . . 4 Fabricators . | . . . . . . Repair Stations . | . . . . . . Recycling Units 5 | . . . . . 5 Scanalyzers . | . . . . . . Garrison Access . | . . . . . . Terminal Hacks 3 | . 1 . . . 2 Branch Access Points 2 | . 1 . . . 1 Locate Traps 1 | . . . . . 1 Fabricator Hacks . | . . . . . . Repair Station Hacks . | . . . . . . Recycling Unit Hacks 3 | . . . . . 3 Report Inventory 2 | . . . . . 2 Retrieve Components 1 | . . . . . 1 Scanalyzer . | . . . . . . Garrison Access Hacks . | . . . . . . Unauthorized Hacks 9 | . 4 . . . 5 Terminals 2 | . 1 . . . 1 Botnet 1 | . 1 . . . . Operators 1 | . . . . . 1 Fabricators . | . . . . . . Repair Stations . | . . . . . . Recycling Units 1 | . . . . . 1 Mask 1 | . . . . . 1 Scanalyzers . | . . . . . . Garrison Access . | . . . . . . Data Cores Recovered 1 | . 1 . . . . Used 1 | . 1 . . . . Hacking Detections 3 | . 1 . . . 2 Full Trace Events . | . . . . . . Feedback Events . | . . . . . . Feedback Blocked . | . . . . . . Robot Schematics Acquired . | . . . . . . Robots Built . | . . . . . . Matter . | . . . . . . Time . | . . . . . . Total Robot Build Rating . | . . . . . . Part Schematics Acquired . | . . . . . . Parts Built . | . . . . . . Matter . | . . . . . . Time . | . . . . . . Total Part Build Rating . | . . . . . . Parts Repaired . | . . . . . . Time . | . . . . . . Parts Recycled . | . . . . . . Recycled Matter . | . . . . . . Retrieved Matter . | . . . . . . Retrieved Components 3 | . . . . . 3 Parts Scanalyzed . | . . . . . . Part Schematics Acquired . | . . . . . . Parts Damaged . | . . . . . . Bothacking | -11 -10 -10 -10 -9 -8 ------------ Run | Scr Mat Min Exi Min Mat Used RIF Installer . | . . . . . . Robots Hacked . | . . . . . . Non-combat . | . . . . . . Combat . | . . . . . . Robot Hacks Applied . | . . . . . . Relay Couplers Released . | . . . . . . Robots Rewired . | . . . . . . Allies Hacked . | . . . . . . Hacks Repelled . | . . . . . . Allies | -11 -10 -10 -10 -9 -8 -------- Run | Scr Mat Min Exi Min Mat Total Allies . | . . . . . . Largest Group . | . . . . . . Highest-Rated Group . | . . . . . . Highest-Rated Ally . | . . . . . . Total Orders . | . . . . . . Ally Attacks . | . . . . . . Total Damage . | . . . . . . Kills . | . . . . . . Allies Corrupted . | . . . . . . Allies Melted 1 | . . . . 1 . Intel | -11 -10 -10 -10 -9 -8 ------- Run | Scr Mat Min Exi Min Mat Robot Analysis Total . | . . . . . . Derelict Logs Recovered 4 | . . 3 . 1 . Drone Launches . | . . . . . . Drone Recoveries . | . . . . . . Exploration | -11 -10 -10 -10 -9 -8 ------------- Run | Scr Mat Min Exi Min Mat Turns Passed 960 | 77 201 181 51 263 187 Spaces Moved 853 | 21 137 227 79 219 170 Core . | . . . . . . Treads . | . . . . . . Legs 1 | 1 . . . . . Wheels 176 | 20 37 . . . 119 Hover 676 | . 100 227 79 219 51 Flight . | . . . . . . Fastest Speed 56 | 90 65 65 65 60 56 Average Speed 68 | 98 71 65 65 63 74 Slowest Speed 120 | 120 90 65 65 65 120 Overloaded Moves . | . . . . . . Propulsion Burnouts . | . . . . . . Robots Hopped . | . . . . . . Cave-ins Triggered . | . . . . . . Exploration Rate (%) 27 | 3 30 53 16 39 24 Regions Visited 5 Branch Regions 3 Pre-discovered Areas 1 | . . 1 . . . Known Exits Taken 1 | . 1 . . . . Unknown Exits Taken 4 | 1 . 1 1 1 . Scrap Searched 1 | . . . . 1 . Spaces Dug . | . . . . . . Terrain Destroyed . | . . . . . . Melee . | . . . . . . Projectile . | . . . . . . AOE . | . . . . . . Actions | -11 -10 -10 -10 -9 -8 --------- Run | Scr Mat Min Exi Min Mat Total 1057 | 63 190 240 78 284 202 Wait 74 | 29 18 1 . 19 7 Move 848 | 20 136 226 78 218 170 Hop . | . . . . . . Pick Up 4 | 2 . . . . 2 Fast Attach 10 | 4 2 . . 1 3 Attach 2 | . . . . 1 1 Detach 1 | . . . . . 1 Swap 3 | 1 . . . 1 1 Drop 6 | 1 1 . . 2 2 Fire 86 | 6 26 10 . 29 15 Melee . | . . . . . . Ram . | . . . . . . Kick . | . . . . . . Crush . | . . . . . . Escape Stasis . | . . . . . . Rewire . | . . . . . . Trap . | . . . . . . Miscellaneous 23 | . 7 3 . 13 . Route ------- -11/Scrapyard -10/Materials (discovered 2 exits: *Min x2) -10/Mines -10/Exiles -9/Mines -8/Materials History --------- Turn | Location | Event 1 | -11/Scrapyard | Discovered new exit (range 1) 5 | -11/Scrapyard | Upgraded with Propulsion slot (x1) 5 | -11/Scrapyard | Upgraded with Utility slot (x1) 5 | -11/Scrapyard | Upgraded with Weapon slot (x1) 78 | -11/Scrapyard | Entered Materials 114 | -10/Materials | Identified exit to Mines 279 | -10/Materials | Entered Mines 283 | -10/Mines | Learned location of Storage (-7) 306 | -10/Mines | Reached level 2 349 | -10/Mines | Learned Materials trap positions 361 | -10/Mines | Learned Materials emergency access door positions 389 | -10/Mines | Learned Materials emergency access door positions 405 | -10/Mines | Deemed a non-threat by the Exiles lab entrance 405 | -10/Mines | Discovered new exit (range 5) 460 | -10/Mines | Entered Exiles 470 | -10/Exiles | Discovered new exit (range 15) 477 | -10/Exiles | Met 8R-AWN 488 | -10/Exiles | Met EX-HEX 511 | -10/Exiles | Entered Mines 512 | -9/Mines | Assembled infested the area 517 | -9/Mines | Assisted by a Guerilla fighting off Assembled 579 | -9/Mines | Build established: Scout 589 | -9/Mines | Core integrity fell below 50% 618 | -9/Mines | Core integrity fell below 20% 647 | -9/Mines | Discovered new exit (range 12) 752 | -9/Mines | Learned Materials stockpile data 774 | -9/Mines | Entered Materials 775 | -8/Materials | Loaded intel: 14 trap records 775 | -8/Materials | Core integrity fell below 50% 776 | -8/Materials | Reached level 3 782 | -8/Materials | Upgraded with Utility slot (x1) 940 | -8/Materials | Reached level 4 942 | -8/Materials | Core integrity fell below 20% 961 | -8/Materials | Destroyed by Y-45 Defender with Heavy Assault Rifle Last Messages --------------- Testing... Masking routine running. 00905_ Upgraded: Inventory Capacity (+1) 00905_ Acquired Adv. Weight Redist. System. 00912_ W-25 Informer sends out distress signal. 00916_ Connecting with Terminal... >>Traps(Locate) Found 1 trap in 1 array: 1x Shock Trap Map updated. >>Access(Branch) No branch access points found. 00938_ Hover Unit destroyed. 00940_ Reached level 4. 00940_ Lgt. Armor Plating melted. 00940_ Y-45 Defender destroyed. 00940_ Switching to secondary target: G-47 Trooper. 00944_ Acquired 23 matter. 00960_ Overheating: System interference. 00960_ Assault Rifle temporarily disabled. Map ----- +----------------------------------------------------+ | ??????????? ???????????????????????????????????? | | ??????????? ???????????????????????????????????? | | ?+??????#? ???????????????????????????????????? | | ??????????# #??????????????????????????????????? | | ??????????# #??????????????????????????????????? | | ??????????# #??????????????????????????????????? | | ??????????# #??????????#??????????????^????????? | | ????????### ###?????#??#???????????????????????? | | ??? ????# #####????????????????????????????? | | ######+## !!#????#???????????????????????? | | # !!###?##????#??????????????????? | | # [[#??#?????????????????????????? | | + [[#???????#????????????????????? | | # = !!#???#??#????#?#??????????????? | | # !!##???????????#???????????????? | | ?? """ * #????#?#?#??###????#??????????????? | | """ "T" #???#??##?????#????#??????????????? | | """ """ ##?#??#?#?##??#???????????????????? | | #?#?##?##???###?????#??????????+??? | | ##?##########?????#????#??????????? | | ####### ##??#! #????#?#???##?#?????+??? | | ##?#### ##??# ##???#??#??????????????? | | #######+### ##?## """ #???????#????#?????????? | | ## ## #?#?# """ ####?#?#??#????????????? | | ## "Y" ## ##### """ #????????#???#?????????? | | ## """!## #???# @##?#?##?????#??????????? | | ## = =%## #########Y###??#???????#??????????? | | #######+## ######gg #?#??#???#??#?????????? | | ##????#!*![ !%g ###????#??????????????? | | ####??#%## ######! ? ?? ?????????? | | #?##?##=########?## ########?????#??+?????? | | #######[###? ?? ?# #???###?#?????????????? | | !#?## ? ### ###???#?#????#????+?????? | | #??# ? ??### ##????##????????????????? | | ##?? ? ??## ##???#??????????????????? | | #### ?#?? ???##??? ?????????????? | | ######## #??# ! ? #?? ? ? ? ???? ????????????? | | ######## #?#? +??] ?????????????????????? | | #####??# ###? ? #? ???? ???????????????? | | ##### #### ??? ??????????????????????? | | + #?#?? ?#??#####?#??????????????????? | | ### #####??#???? ????????????????????????????? | | ### ####??## ? ????????????????????????????? | | ### ##?#??## ????##????????????????????????? | | " #?# #?????#?##????????????????????????????????? | | " #?# ###??##?#?????????????????????????????????? | | " ### #??#????##???#????????????????????????????? | | #?# ##????##????#??#??????????????????????????? | | ###### #??#????#?#???????????????????????????????? | | ####??#??##???????????????????????????????? | +----------------------------------------------------+ Best States ------------- Heat Dissipation 25 Energy Generation 14 Energy Capacity 250 Matter Stores 300 Matter Capacity 300 Sight Range 16 Robot Scan Range 12 Terrain Scan Range 16 Terrain Scan Density 110 Resistance: KI 5 Evasion (%) 53 Targeting Accuracy 8 Item Schematics ----------------- None Robot Schematics ------------------ None Fabricated ------------ Nothing Alien Tech Used ----------------- None Achievements -------------- None Challenges ------------ None RPGLIKE | -11 -10 -10 -10 -9 -8 --------- Run | Scr Mat Min Exi Min Mat Levels Raised 3 | . . 1 . . 2 XP Earned 7635 | 3000 920 850 200 750 1915 XP Spent 4550 | 3000 . . . . 1550 Upgrades 12 | 10 . . . . 2 Propulsion Slot 1 | 1 . . . . . Utility Slot 2 | 1 . . . . 1 Weapon Slot 1 | 1 . . . . . Mass Support 1 | 1 . . . . . Inventory Capacity 3 | 2 . . . . 1 Sensor Range 1 | 1 . . . . . Terrain Scan Density 1 | 1 . . . . . Ranged Accuracy 1 | 1 . . . . . KI Resistance % 1 | 1 . . . . . Protomatter Created 158 | . 43 22 . 93 . Integrity Restored 459 | . 129 66 . 264 . Core 459 | . 129 66 . 264 . Protomatter Decayed 47 | . . . . 47 . Game ------ Seed WaveDiametricPick Manual? 0 Play Time 00:20:14 Cumulative 350.4 hours Start 2020.01.07 @ 13:24:29 End 2020.01.07 @ 13:46:16 Sessions 1 Manual Loads 0 Difficulty Rogue Special Mode Winter2019/RPGLIKE Game No. 137 Rogue 137 Adventurer 0 Explorer 0 Win Type - Total 11 Types 8/1/0/2/0/0/0 Lore% 86 Gallery% 85 Achievement% 66 Wizard Run 0 Options --------- ASCII 0 Keyboard 0 Movement Numpad Keybinds 0 Fullscreen 0 Font 14/Dina Map View 76x50 Tactical HUD 1 Map Filters NONE Filters NONE Steam 1 RUN: 5d9fa19e-b9b3-4f54-bc1b-c229613c1397